fUSD/lending_fUSD_20250110
["ID","MTS","AMOUNT","RATE_DAILY","PERIOD"]
[348396044,1736503856831,-500.0,0.0001082,2]
[348396045,1736503856840,-646.4,0.0001082,2]
[348396046,1736503856850,-500.0,0.0001082,2]
[348396047,1736503856859,-1637.54,0.0001082,2]
[348396048,1736503856868,-601.64,0.0001082,2]
[348396049,1736503856877,-943.67,0.0001082,2]
[348396050,1736503856886,-500.0,0.0001082,2]
[348396051,1736503856895,-500.0,0.0001082,2]
[348396052,1736503856904,-500.0,0.0001082,2]
[348396053,1736503856913,-549.59,0.0001082,2]
[348396054,1736503856922,-500.0,0.0001082,2]
[348396055,1736503856931,-1146.17,0.0001082,2]
[348396056,1736503856940,-550.62,0.0001082,2]
[348396057,1736503856950,-500.0,0.0001082,2]
[348396058,1736503856959,-564.61,0.0001082,2]
[348396059,1736503856968,-775.33,0.0001082,2]
[348396060,1736503856978,-671.45,0.0001082,2]
[348396061,1736503856987,-500.0,0.0001082,2]
[348396062,1736503856996,-500.0,0.0001082,2]
[348396063,1736503857006,-597.41,0.0001082,2]
[348396064,1736503857015,-500.0,0.0001082,2]
[348396065,1736503857025,-550.56,0.0001082,2]
[348396066,1736503857034,-742.93,0.0001082,2]
[348396067,1736503857044,-578.9,0.0001082,2]
[348396068,1736503857053,-500.0,0.0001082,2]
[348396069,1736503857062,-659.94,0.0001082,2]
[348396070,1736503857071,-500.0,0.0001082,2]
[348396071,1736503857080,-853.46,0.0001082,2]
[348396072,1736503857089,-500.0,0.0001082,2]
[348396073,1736503857099,-3040.66,0.0001082,2]
[348396074,1736503857108,-717.58,0.0001082,2]
[348396075,1736503857117,-1758.78,0.0001082,2]
[348396076,1736503857127,-812.97,0.0001082,2]
[348396077,1736503857136,-500.0,0.0001082,2]
[348396078,1736503857145,-500.0,0.0001082,2]
[348396079,1736503857154,-2207.01,0.0001082,2]
[348396080,1736503857163,-621.49,0.0001082,2]
[348396081,1736503857172,-500.0,0.0001082,2]
[348396082,1736503857181,-1514.35,0.0001082,2]
[348396083,1736503857191,-2638.96,0.0001082,2]
[348396084,1736503857201,-500.0,0.0001082,2]
[348396085,1736503857210,-500.0,0.0001082,2]
[348396086,1736503857220,-842.78,0.0001082,2]
[348396087,1736503857230,-1081.76,0.0001082,2]
[348396088,1736503857239,-771.76,0.0001082,2]
[348396089,1736503857249,-668.66,0.0001082,2]
[348396090,1736503857258,-640.27,0.0001082,2]
[348396091,1736503857268,-500.0,0.0001082,2]
[348396092,1736503857278,-636.47,0.0001082,2]
[348396093,1736503857287,-2557.88,0.0001082,2]
[348396094,1736503857295,-692.35,0.0001082,2]
[348396095,1736503857304,-500.0,0.0001082,2]
[348396096,1736503857314,-500.0,0.0001082,2]
[348396097,1736503857324,-540.02,0.0001082,2]
[348396098,1736503857334,-524.46,0.0001082,2]
[348396099,1736503857344,-500.0,0.0001082,2]
[348396100,1736503857354,-500.0,0.0001082,2]
[348396101,1736503857363,-716.65,0.0001082,2]
[348396102,1736503857372,-1145.78,0.0001082,2]
[348396103,1736503857382,-584.46,0.0001082,2]
[348396104,1736503857539,-500.0,0.0001082,2]
[348396105,1736503857559,-507.58,0.0001082,2]
[348396106,1736503857568,-500.0,0.0001082,2]
[348396107,1736503857578,-500.65,0.0001082,2]
[348396108,1736503857588,-500.0,0.0001082,2]
[348396109,1736503857598,-592.12,0.0001082,2]
[348396110,1736503857610,-680.86,0.0001082,2]
[348396111,1736503857620,-500.0,0.0001082,2]
[348396112,1736503857631,-500.0,0.0001082,2]
[348396113,1736503857642,-704.37,0.0001082,2]
[348396114,1736503857651,-2244.82,0.0001082,2]
[348396115,1736503857660,-502.67,0.0001082,2]
[348396116,1736503857671,-792.57,0.0001082,2]
[348396117,1736503857681,-500.0,0.0001082,2]
[348396118,1736503857695,-1095.62,0.0001082,2]
[348396119,1736503857709,-700.07,0.0001082,2]
[348396120,1736503857720,-500.0,0.0001082,2]
[348396121,1736503857731,-500.0,0.0001082,2]
[348396122,1736503857742,-500.0,0.0001082,2]
[348396123,1736503857753,-582.06,0.0001082,2]
[348396124,1736503857764,-500.0,0.0001082,2]
[348396125,1736503857775,-678.89,0.0001082,2]
[348396126,1736503857786,-634.08,0.0001082,2]
[348396127,1736503857796,-500.0,0.0001082,2]
[348396128,1736503857807,-500.0,0.0001082,2]
[348396129,1736503857818,-618.45,0.0001082,2]
[348396130,1736503857828,-787.52,0.0001082,2]
[348396131,1736503857840,-2496.96,0.0001082,2]
[348396132,1736503857851,-500.0,0.0001082,2]
[348396133,1736503857861,-500.0,0.0001082,2]
[348396134,1736503857870,-500.0,0.0001082,2]
[348396135,1736503857880,-984.1,0.0001082,2]
[348396136,1736503857889,-500.0,0.0001082,2]
[348396137,1736503857898,-500.0,0.0001082,2]
[348396138,1736503857907,-588.95,0.0001082,2]
[348396139,1736503857916,-863.51,0.0001082,2]
[348396140,1736503857927,-705.16,0.0001082,2]
[348396141,1736503857937,-500.0,0.0001082,2]
[348396142,1736503857948,-1065.16,0.0001082,2]
[348396143,1736503857957,-500.0,0.0001082,2]
[348396144,1736503857969,-500.0,0.0001082,2]
[348396145,1736503857979,-500.0,0.0001082,2]
[348396146,1736503857991,-500.0,0.00010821,2]
[348396147,1736503858002,-1577.65,0.00010821,2]
[348396148,1736503858011,-893.71,0.00010821,2]
[348396149,1736503858020,-3088.55,0.00010821,2]
[348396150,1736503858032,-2112.3,0.00010821,2]
[348396151,1736503858043,-1444.05,0.00010821,2]
[348396152,1736503858054,-881.01,0.00010821,2]
[348396153,1736503858065,-1726.12,0.00010821,2]
[348396154,1736503858077,-997.18,0.00010821,2]
[348396155,1736503858087,-761.6,0.00010821,2]
[348396156,1736503858098,-1350.72,0.00010821,2]
[348396157,1736503858111,-935.42,0.00010821,2]
[348396158,1736503858121,-842.74,0.00010821,2]
[348396159,1736503858132,-700.68383634,0.00010884,2]
[348396160,1736503858143,-108025.13942694,0.0001089,2]
[348396161,1736503858154,-454.36,0.000109,2]
[348396162,1736503858163,-416.79240604,0.000109,2]
[348396163,1736503858175,-416.79240597,0.000109,2]
[348396164,1736503858184,-416.79240597,0.000109,2]
[348396165,1736503858194,-416.79240597,0.000109,2]
[348396166,1736503858205,-1841.60964294,0.000109,2]
[348396167,1736503858214,-2233.26223078,0.000109,2]
[348396168,1736503858223,-150.0,0.00010948,2]
[348396169,1736503858233,-150.0,0.00010948,2]
[348396170,1736503858242,-150.0,0.00010948,2]
[348396171,1736503858252,-150.0,0.00010958,2]
[348396172,1736503858262,-999.0,0.00010958,2]
[348396173,1736503858272,-150.0,0.00010959,2]
[348396174,1736503858282,-2233.26223053,0.00010969,2]
[348396175,1736503858292,-500.0,0.00010986,2]
[348396176,1736503858303,-500.0,0.00010986,2]
[348396177,1736503858313,-192.67069922,0.00010994,2]
[348396178,1736503858323,-7658.85090816,0.00010994,2]
[348396179,1736503858334,-238.0,0.00010996,2]
[348396180,1736503858343,-14205.0,0.00011,2]
[348396181,1736503858352,-550.0,0.00011,2]
[348396182,1736503858361,-2233.26223053,0.00011038,2]
[348396183,1736503858371,-1032.10243186,0.0001105,2]
[348396184,1736503858380,-569.37,0.0001109,2]
[348396185,1736503858389,-1818.53,0.0001109,2]
[348396186,1736503858400,-861.72,0.0001109,2]
[348396187,1736503858410,-716.26,0.0001109,2]
[348396188,1736503858420,-917.19,0.0001109,2]
[348396189,1736503858430,-1086.31,0.0001109,2]
[348396190,1736503858440,-1000.0,0.0001109,2]
[348396191,1736503858449,-833.72,0.0001109,2]
[348396192,1736503858459,-5878.53,0.00011092,2]
[348396193,1736503858469,-164.495869,0.00011093,2]
[348396194,1736503858479,-164.495869,0.00011093,2]
[348396195,1736503858489,-919.36,0.00011093,2]
[348396196,1736503858498,-999.91,0.00011093,2]
[348396197,1736503858509,-500.0,0.00011093,2]
[348396198,1736503858518,-762.78,0.00011093,2]
[348396199,1736503858528,-1822.9,0.00011093,2]
[348396200,1736503858538,-672.41,0.00011093,2]
[348396201,1736503858549,-668.34,0.00011093,2]
[348396202,1736503858558,-1220.62,0.00011093,2]
[348396203,1736503858567,-5801.0,0.00011093,2]
[348396204,1736503858577,-543.85,0.00011093,2]
[348396205,1736503858586,-668.7,0.00011093,2]
[348396206,1736503858595,-629.72,0.00011093,2]
[348396207,1736503858604,-833.02,0.00011093,2]
[348396208,1736503858613,-993.98,0.00011093,2]
[348396209,1736503858622,-629.74,0.00011093,2]
[348396210,1736503858631,-1024.56,0.00011093,2]
[348396211,1736503858642,-766.63,0.00011093,2]
[348396212,1736503858653,-1583.54,0.00011093,2]
[348396213,1736503858662,-1223.29,0.00011093,2]
[348396214,1736503858672,-883.05,0.00011093,2]
[348396215,1736503858682,-2478.93,0.00011093,2]
[348396216,1736503858697,-1103.68,0.00011093,2]
[348396217,1736503858707,-860.73,0.00011093,2]
[348396218,1736503858716,-1171.94,0.00011093,2]
[348396219,1736503858725,-624.36,0.00011093,2]
[348396220,1736503858734,-673.41,0.00011093,2]
[348396221,1736503858743,-1534.27,0.00011093,2]
[348396222,1736503858752,-1221.89,0.00011093,2]
[348396223,1736503858763,-783.34,0.00011093,2]
[348396224,1736503858772,-1198.02,0.00011093,2]
[348396225,1736503858781,-697.47,0.00011093,2]
[348396226,1736503858790,-1786.26,0.00011093,2]
[348396227,1736503858799,-548.35,0.00011093,2]
[348396228,1736503858808,-1152.07,0.00011093,2]
[348396229,1736503858818,-557.85,0.00011093,2]
[348396230,1736503858827,-1938.4,0.00011093,2]
[348396231,1736503858836,-760.64,0.00011093,2]
[348396232,1736503858844,-500.0,0.00011093,2]
[348396233,1736503858853,-2588.68,0.00011093,2]
[348396234,1736503858863,-575.58,0.00011093,2]
[348396235,1736503858872,-704.25,0.00011093,2]
[348396236,1736503858881,-628.69,0.00011093,2]
[348396237,1736503858891,-500.0,0.00011093,2]
[348396238,1736503858900,-4445.51,0.00011093,2]
[348396239,1736503858909,-500.0,0.00011093,2]
[348396240,1736503858918,-500.0,0.00011094,2]
[348396241,1736503858927,-500.0,0.00011094,2]
[348396242,1736503858936,-514.9,0.00011094,2]
[348396243,1736503858945,-500.0,0.00011094,2]
[348396244,1736503858954,-258.127017,0.00011094,2]
[348396245,1736503858963,-152.1261425,0.00011094,2]
[348396246,1736503858973,-278.904117,0.00011094,2]
[348396247,1736503858982,-500.0,0.00011094,2]
[348396248,1736503858991,-385.62373935,0.00011094,2]
[348396249,1736503859001,-500.0,0.00011094,2]
[348396250,1736503859010,-500.0,0.00011094,2]
[348396251,1736503859019,-500.0,0.00011094,2]
[348396252,1736503859028,-500.0,0.00011094,2]
[348396253,1736503859037,-558.93,0.00011094,2]
[348396254,1736503859046,-500.0,0.00011094,2]
[348396255,1736503859055,-500.0,0.00011094,2]
[348396256,1736503859064,-599.53,0.00011094,2]
[348396257,1736503859073,-500.0,0.00011094,2]
[348396258,1736503859082,-500.0,0.00011094,2]
[348396259,1736503859091,-563.24,0.00011094,2]
[348396260,1736503859100,-719.57,0.00011094,2]
[348396261,1736503859109,-483.89928181,0.00011094,2]
[348396262,1736503859118,-500.0,0.00011094,2]
[348396263,1736503859127,-500.0,0.00011094,2]
[348396264,1736503859136,-500.0,0.00011094,2]
[348396265,1736503859145,-619.56,0.00011094,2]
[348396266,1736503859154,-500.0,0.00011094,2]
[348396267,1736503859163,-500.0,0.00011094,2]
[348396268,1736503859172,-500.0,0.00011094,2]
[348396269,1736503859181,-500.0,0.00011094,2]
[348396270,1736503859192,-500.0,0.00011094,2]
[348396271,1736503859201,-606.77,0.00011094,2]
[348396272,1736503859210,-500.0,0.00011094,2]
[348396273,1736503859219,-500.0,0.00011094,2]
[348396274,1736503859228,-500.0,0.00011094,2]
[348396275,1736503859237,-500.0,0.00011094,2]
[348396276,1736503859246,-629.70494704,0.00011094,2]
[348396277,1736503859256,-500.0,0.00011094,2]
[348396278,1736503859265,-500.0,0.00011094,2]
[348396279,1736503859274,-500.0,0.00011094,2]
[348396280,1736503859283,-569.35,0.00011094,2]
[348396281,1736503859292,-500.0,0.00011094,2]
[348396282,1736503859301,-500.0,0.00011094,2]
[348396283,1736503859310,-500.0,0.00011094,2]
[348396284,1736503859319,-500.0,0.00011094,2]
[348396285,1736503859328,-500.0,0.00011094,2]
[348396286,1736503859338,-500.0,0.00011094,2]
[348396287,1736503859347,-500.0,0.00011094,2]
[348396288,1736503859356,-602.95,0.00011094,2]
[348396289,1736503859365,-500.0,0.00011094,2]
[348396290,1736503859375,-500.0,0.00011094,2]
[348396291,1736503859384,-500.0,0.00011094,2]
[348396292,1736503859393,-500.0,0.00011094,2]
[348396293,1736503859402,-561.48,0.00011094,2]
[348396294,1736503859412,-2738.48,0.00011094,2]
[348396295,1736503859421,-581.2,0.00011094,2]
[348396296,1736503859430,-500.0,0.00011094,2]
[348396297,1736503859439,-646.13,0.00011094,2]
[348396298,1736503859448,-500.0,0.00011094,2]
[348396299,1736503859457,-500.0,0.00011094,2]
[348396300,1736503859466,-500.0,0.00011094,2]
[348396301,1736503859475,-500.0,0.00011094,2]
[348396302,1736503859484,-500.0,0.00011094,2]
[348396303,1736503859493,-500.0,0.00011094,2]
[348396304,1736503859502,-516.0,0.00011094,2]
[348396305,1736503859511,-500.0,0.00011094,2]
[348396306,1736503859520,-500.0,0.00011094,2]
[348396307,1736503859529,-666.5,0.00011094,2]
[348396308,1736503859538,-500.0,0.00011094,2]
[348396309,1736503859547,-513.91,0.00011094,2]
[348396310,1736503859556,-646.26,0.00011094,2]
[348396311,1736503859565,-500.0,0.00011094,2]
[348396312,1736503859574,-712.98,0.00011094,2]
[348396313,1736503859583,-500.0,0.00011094,2]
[348396314,1736503859593,-635.94,0.00011094,2]
[348396315,1736503859602,-618.74,0.00011094,2]
[348396316,1736503859611,-605.97,0.00011094,2]
[348396317,1736503859620,-573.6,0.00011094,2]
[348396318,1736503859629,-2186.24,0.00011094,2]
[348396319,1736503859638,-672.67,0.00011094,2]
[348396320,1736503859647,-503.53,0.00011094,2]
[348396321,1736503859656,-500.0,0.00011094,2]
[348396322,1736503859665,-481.7004506,0.00011094,2]
[348396323,1736503859674,-933.18,0.00011094,2]
[348396324,1736503859683,-500.0,0.00011094,2]
[348396325,1736503859695,-646.4,0.00011094,2]
[348396326,1736503859704,-500.0,0.00011094,2]
[348396327,1736503859713,-1637.54,0.00011094,2]
[348396328,1736503859722,-601.64,0.00011094,2]
[348396329,1736503859731,-943.67,0.00011094,2]
[348396330,1736503859741,-500.0,0.00011094,2]
[348396331,1736503859750,-500.0,0.00011094,2]
[348396332,1736503859759,-500.0,0.00011094,2]
[348396333,1736503859769,-549.59,0.00011094,2]
[348396334,1736503859778,-500.0,0.00011094,2]
[348396335,1736503859788,-1146.17,0.00011094,2]
[348396336,1736503859797,-550.62,0.00011094,2]
[348396337,1736503859806,-500.0,0.00011094,2]
[348396338,1736503859815,-564.61,0.00011094,2]
[348396339,1736503859824,-775.33,0.00011094,2]
[348396340,1736503859833,-671.45,0.00011094,2]
[348396341,1736503859842,-500.0,0.00011094,2]
[348396342,1736503859851,-500.0,0.00011094,2]
[348396343,1736503859860,-597.41,0.00011094,2]
[348396344,1736503859869,-500.0,0.00011094,2]
[348396345,1736503859879,-550.56,0.00011094,2]
[348396346,1736503859888,-742.93,0.00011094,2]
[348396347,1736503859897,-578.9,0.00011094,2]
[348396348,1736503859906,-500.0,0.00011094,2]
[348396349,1736503859915,-659.94,0.00011094,2]
[348396350,1736503859924,-500.0,0.00011094,2]
[348396351,1736503859980,-853.46,0.00011094,2]
[348396352,1736503859990,-500.0,0.00011094,2]
[348396353,1736503859999,-3040.66,0.00011094,2]
[348396354,1736503860010,-717.58,0.00011094,2]
[348396355,1736503860019,-1758.78,0.00011094,2]
[348396356,1736503860028,-812.97,0.00011094,2]
[348396357,1736503860037,-500.0,0.00011094,2]
[348396358,1736503860047,-500.0,0.00011094,2]
[348396359,1736503860057,-621.49,0.00011094,2]
[348396360,1736503860066,-2207.01,0.00011094,2]
[348396361,1736503860076,-500.0,0.00011094,2]
[348396362,1736503860085,-2638.96,0.00011094,2]
[348396363,1736503860094,-1514.35,0.00011094,2]
[348396364,1736503860104,-500.0,0.00011094,2]
[348396365,1736503860113,-500.0,0.00011094,2]
[348396366,1736503860122,-842.78,0.00011094,2]
[348396367,1736503860131,-1081.76,0.00011094,2]
[348396368,1736503860140,-668.66,0.00011094,2]
[348396369,1736503860149,-771.76,0.00011094,2]
[348396370,1736503860159,-640.27,0.00011094,2]
[348396371,1736503860168,-500.0,0.00011094,2]
[348396372,1736503860177,-636.47,0.00011094,2]
[348396373,1736503860186,-2557.88,0.00011094,2]
[348396374,1736503860196,-692.35,0.00011094,2]
[348396375,1736503860205,-500.0,0.00011094,2]
[348396376,1736503860214,-500.0,0.00011094,2]
[348396377,1736503860224,-540.02,0.00011094,2]
[348396378,1736503860234,-524.46,0.00011094,2]
[348396379,1736503860243,-500.0,0.00011094,2]
[348396380,1736503860254,-500.0,0.00011094,2]
[348396381,1736503860264,-716.65,0.00011094,2]
[348396382,1736503860274,-1145.78,0.00011094,2]
[348396383,1736503860284,-584.46,0.00011094,2]
[348396384,1736503860293,-500.0,0.00011094,2]
[348396385,1736503860303,-507.58,0.00011094,2]
[348396386,1736503860312,-500.0,0.00011094,2]
[348396387,1736503860322,-500.65,0.00011094,2]
[348396388,1736503860332,-500.0,0.00011094,2]
[348396389,1736503860341,-592.12,0.00011094,2]
[348396390,1736503860351,-680.86,0.00011094,2]
[348396391,1736503860360,-500.0,0.00011094,2]
[348396392,1736503860369,-500.0,0.00011094,2]
[348396393,1736503860378,-704.37,0.00011094,2]
[348396394,1736503860388,-2244.82,0.00011094,2]
[348396395,1736503860397,-502.67,0.00011094,2]
[348396396,1736503860406,-792.57,0.00011094,2]
[348396397,1736503860416,-537.01257689,0.00011094,2]
[348396398,1736503860425,-1095.62,0.00011094,2]
[348396399,1736503860434,-700.07,0.00011094,2]
[348396400,1736503860444,-500.0,0.00011094,2]
[348396401,1736503860453,-500.0,0.00011094,2]
[348396402,1736503860462,-500.0,0.00011094,2]
[348396403,1736503860471,-582.06,0.00011094,2]
[348396404,1736503860480,-500.0,0.00011094,2]
[348396405,1736503860488,-678.89,0.00011094,2]
[348396406,1736503860498,-634.08,0.00011094,2]
[348396407,1736503860508,-500.0,0.00011094,2]
[348396408,1736503860518,-618.45,0.00011094,2]
[348396409,1736503860527,-787.52,0.00011094,2]
[348396410,1736503860536,-2496.96,0.00011094,2]
[348396411,1736503860545,-162.45335047,0.00011094,2]
[348396412,1736503860554,-500.0,0.00011094,2]
[348396413,1736503860564,-500.0,0.00011094,2]
[348396414,1736503860572,-984.1,0.00011094,2]
[348396415,1736503860581,-500.0,0.00011094,2]
[348396416,1736503860590,-500.0,0.00011094,2]
[348396417,1736503860599,-588.95,0.00011094,2]
[348396418,1736503860608,-863.51,0.00011094,2]
[348396419,1736503860617,-705.16,0.00011094,2]
[348396420,1736503860626,-500.0,0.00011094,2]
[348396421,1736503860635,-1065.16,0.00011094,2]
[348396422,1736503860644,-500.0,0.00011094,2]
[348396423,1736503860654,-500.0,0.00011094,2]
[348396424,1736503860663,-500.0,0.00011094,2]
[348396425,1736503860672,-150.0,0.00011095,2]
[348396426,1736503860681,-500.0,0.00011095,2]
[348396427,1736503860693,-1577.65,0.00011095,2]
[348396428,1736503860702,-893.71,0.00011095,2]
[348396429,1736503860712,-3088.55,0.00011095,2]
[348396430,1736503860721,-2112.3,0.00011095,2]
[348396431,1736503860732,-1444.05,0.00011095,2]
[348396432,1736503860743,-881.01,0.00011095,2]
[348396433,1736503860753,-1726.12,0.00011095,2]
[348396434,1736503860764,-997.18,0.00011095,2]
[348396435,1736503860773,-761.6,0.00011095,2]
[348396436,1736503860783,-1350.72,0.00011095,2]
[348396437,1736503860796,-935.42,0.00011095,2]
[348396438,1736503860805,-842.74,0.00011095,2]
[348396439,1736503860816,-672.53828082,0.00011098,2]
[348396440,1736503860825,-173.835,0.00011099,2]
[348396441,1736503860835,-151.0,0.00011099,2]
[348396442,1736503860844,-151.0,0.00011099,2]
[348396443,1736503860854,-151.0,0.00011099,2]
[348396444,1736503860863,-2233.26223053,0.00011107,2]
[348396445,1736503860872,-150.0,0.00011151,2]
[348396446,1736503860882,-2233.26223053,0.00011176,2]
[348396447,1736503860891,-416.79240597,0.00011213,2]
[348396448,1736503860900,-180.804932,0.0001123,2]
[348396449,1736503860910,-177.462475,0.0001123,2]
[348396450,1736503860919,-231.71210857,0.00011232,2]
[348396451,1736503860928,-2233.26223053,0.00011245,2]
[348396452,1736503860937,-2233.26223053,0.00011314,2]
[348396453,1736503860946,-150.0,0.00011353,2]
[348396454,1736503860955,-569.37,0.00011364,2]
[348396455,1736503860964,-1818.53,0.00011364,2]
[348396456,1736503860973,-861.72,0.00011364,2]
[348396457,1736503860982,-716.26,0.00011364,2]
[348396458,1736503860991,-917.19,0.00011364,2]
[348396459,1736503861000,-1086.31,0.00011364,2]
[348396460,1736503861010,-1000.0,0.00011364,2]
[348396461,1736503861020,-659.65733519,0.00011364,2]
[348396462,1736503861292,-174.06266481,0.00011364,2]
[348396463,1736503861303,-94.21788922,0.00011366,2]
[348396464,1736503861330,-436.38132416,9.998e-05,2]
[348396465,1736503861692,-492.37653948,9.9e-05,2]
[348396466,1736503861704,-479.90012202,9.9e-05,2]
[348396467,1736503861713,-63.61867584,9.998e-05,2]
[348396468,1736503861722,-244.78466266,9.998e-05,2]
[348396469,1736503861745,-258.62589125,9.998e-05,2]
[348396470,1736503861755,-464.17410875,9.998e-05,2]
[348396471,1736503861767,-35.82589125,9.998e-05,2]
[348396472,1736503861776,-427.70402295,9.999e-05,2]
[348396473,1736503862216,-500.0,9.998e-05,2]
[348396474,1736503862228,-156.19557486,9.998e-05,2]
[348396475,1736503862238,-505.53658496,9.998e-05,2]
[348396476,1736503862248,-72.29597705,9.999e-05,2]
[348396477,1736503862259,-252.2,0.000101,2]
[348396478,1736503862268,-500.0,0.00010273,2]
[348396479,1736503862277,-500.0,0.00010547,2]
[348396480,1736503862286,-152.722008,0.00010816,2]
[348396481,1736503862297,-930.04,0.00010819,2]
[348396482,1736503862308,-500.0,0.0001082,2]
[348396483,1736503862318,-500.0,0.00010821,2]
[348396484,1736503862327,-500.0,0.0001109,2]
[348396485,1736503862338,-775.38,0.00011093,2]
[348396486,1736503862349,-930.04,0.00011093,2]
[348396487,1736503862360,-500.0,0.00011094,2]
[348396488,1736503862370,-500.0,0.00011095,2]
[348396489,1736503862380,-500.0,0.00011364,2]
[348396490,1736503862390,-1789.15632519,0.00011366,2]
[348396491,1736503862449,-500.0,9.998e-05,2]
[348396492,1736503862461,-3995.15578559,0.00011366,2]
[348396493,1736503862471,-919.36,0.00011367,2]
[348396494,1736503862481,-500.0,0.00011367,2]
[348396495,1736503862490,-762.78,0.00011367,2]
[348396496,1736503862500,-1822.9,0.00011367,2]
[348396497,1736503862511,-672.41,0.00011367,2]
[348396498,1736503862520,-668.34,0.00011367,2]
[348396499,1736503862531,-1220.62,0.00011367,2]
[348396500,1736503862541,-5801.0,0.00011367,2]
[348396501,1736503862550,-543.85,0.00011367,2]
[348396502,1736503862560,-668.7,0.00011367,2]
[348396503,1736503862569,-629.72,0.00011367,2]
[348396504,1736503862579,-833.02,0.00011367,2]
[348396505,1736503862588,-993.98,0.00011367,2]
[348396506,1736503862598,-629.74,0.00011367,2]
[348396507,1736503862607,-1024.56,0.00011367,2]
[348396508,1736503862617,-766.63,0.00011367,2]
[348396509,1736503862627,-1583.54,0.00011367,2]
[348396510,1736503862636,-1223.29,0.00011367,2]
[348396511,1736503862646,-883.05,0.00011367,2]
[348396512,1736503862656,-2478.93,0.00011367,2]
[348396513,1736503862664,-1103.68,0.00011367,2]
[348396514,1736503862674,-860.73,0.00011367,2]
[348396515,1736503862684,-1171.94,0.00011367,2]
[348396516,1736503862699,-624.36,0.00011367,2]
[348396517,1736503862708,-673.41,0.00011367,2]
[348396518,1736503862718,-1534.27,0.00011367,2]
[348396519,1736503862727,-1221.89,0.00011367,2]
[348396520,1736503862736,-783.34,0.00011367,2]
[348396521,1736503862746,-1198.02,0.00011367,2]
[348396522,1736503862756,-697.47,0.00011367,2]
[348396523,1736503862767,-1786.26,0.00011367,2]
[348396524,1736503862779,-548.35,0.00011367,2]
[348396525,1736503862791,-1152.07,0.00011367,2]
[348396526,1736503862802,-557.85,0.00011367,2]
[348396527,1736503862811,-1938.4,0.00011367,2]
[348396528,1736503862821,-760.64,0.00011367,2]
[348396529,1736503862833,-500.0,0.00011367,2]
[348396530,1736503862844,-2588.68,0.00011367,2]
[348396531,1736503862855,-575.58,0.00011367,2]
[348396532,1736503862864,-704.25,0.00011367,2]
[348396533,1736503862874,-628.69,0.00011367,2]
[348396534,1736503862886,-500.0,0.00011367,2]
[348396535,1736503862897,-500.0,0.00011367,2]
[348396536,1736503862906,-4445.51,0.00011367,2]
[348396537,1736503862917,-775.38,0.00011367,2]
[348396538,1736503862927,-930.04,0.00011367,2]
[348396539,1736503862937,-666.0,0.00011367,2]
[348396540,1736503862950,-666.0,0.00011367,2]
[348396541,1736503862962,-500.0,0.00011368,2]
[348396542,1736503862972,-500.0,0.00011368,2]
[348396543,1736503862983,-514.9,0.00011368,2]